[Event "*** Titled Tuesday Blitz"]
[Site "Chess.com"]
[Date "2020.11.10"]
[Round "10"]
[White "hansen"]
[Black "DrVelja"]
[Result "1-0"]
[WhiteElo "2904"]
[BlackElo "2770"]
[TimeControl "180+1"]
[EndTime "12:01:57 PST"]
[Termination "hansen won by resignation"]

1. e4 {[%clk 0:03:00.9]} 1... c5 {[%clk 0:03:00]} 2. Nf3 {[%clk 0:02:54.9]} 2...
Nc6 {[%clk 0:03:00.1]} 3. Bb5 {[%clk 0:02:50.7]} 3... g6 {[%clk 0:02:59.6]} 4.
O-O {[%clk 0:02:49.4]} 4... Bg7 {[%clk 0:02:59]} 5. Bxc6 {[%clk 0:02:45.9]} 5...
dxc6 {[%clk 0:02:54]} 6. h3 {[%clk 0:02:45.8]} 6... Nf6 {[%clk 0:02:53.5]} 7. d3
{[%clk 0:02:43]} 7... Nd7 {[%clk 0:02:52.8]} 8. Nc3 {[%clk 0:02:37.3]} 8... e5
{[%clk 0:02:52.6]} 9. Be3 {[%clk 0:02:35.5]} 9... b6 {[%clk 0:02:52.6]} 10. Qd2
{[%clk 0:02:34.8]} 10... h6 {[%clk 0:02:52.9]} 11. Nh2 {[%clk 0:02:33]} 11...
Nf6 {[%clk 0:02:47.2]} 12. a4 {[%clk 0:02:20.6]} 12... a5 {[%clk 0:02:38]} 13.
b3 {[%clk 0:02:17.3]} 13... Nd5 {[%clk 0:02:31.8]} 14. exd5 {[%clk 0:02:05.5]}
14... cxd5 {[%clk 0:02:32.5]} 15. Rae1 {[%clk 0:01:57.6]} 15... Be6 {[%clk
0:02:10.4]} 16. Nb5 {[%clk 0:01:42.8]} 16... d4 {[%clk 0:02:09]} 17. Nf3 {[%clk
0:01:31.3]} 17... dxe3 {[%clk 0:01:49.4]} 18. Qxe3 {[%clk 0:01:31.5]} 18... O-O
{[%clk 0:01:38.5]} 19. Nxe5 {[%clk 0:01:30.5]} 19... Bd5 {[%clk 0:01:38.5]} 20.
Qf4 {[%clk 0:01:13.3]} 20... g5 {[%clk 0:01:21.5]} 21. Qf5 {[%clk 0:01:05.6]}
21... Be6 {[%clk 0:01:19.6]} 22. Qf3 {[%clk 0:00:59.1]} 22... Bd5 {[%clk
0:01:19.5]} 23. Qh5 {[%clk 0:00:51.9]} 23... Re8 {[%clk 0:00:55.6]} 24. Ng4
{[%clk 0:00:43.4]} 24... Rxe1 {[%clk 0:00:48.5]} 25. Rxe1 {[%clk 0:00:43.7]}
25... Kh7 {[%clk 0:00:49]} 26. Ne3 {[%clk 0:00:29.5]} 26... Bc6 {[%clk
0:00:41.9]} 27. Qxf7 {[%clk 0:00:28.3]} 27... Qe8 {[%clk 0:00:30.7]} 28. Qf5+
{[%clk 0:00:20.1]} 28... Qg6 {[%clk 0:00:29.4]} 29. Qxg6+ {[%clk 0:00:20.3]}
29... Kxg6 {[%clk 0:00:30.3]} 30. Nc4 {[%clk 0:00:20.8]} 30... Kf6 {[%clk
0:00:25.9]} 31. Nxb6 {[%clk 0:00:15.9]} 31... Rb8 {[%clk 0:00:26.5]} 32. Nc4
{[%clk 0:00:14.6]} 32... Bxb5 {[%clk 0:00:27]} 33. axb5 {[%clk 0:00:15.5]} 33...
Rb6 {[%clk 0:00:27.5]} 34. Nxb6 {[%clk 0:00:13.6]} 1-0

[Event "*** Titled Tuesday Blitz"]
[Site "Chess.com"]
[Date "2020.11.10"]
[Round "10"]
[White "Nuvas"]
[Black "Tashik"]
[Result "1-0"]
[WhiteElo "2355"]
[BlackElo "2446"]
[TimeControl "180+1"]
[EndTime "12:01:58 PST"]
[Termination "Nuvas won by checkmate"]

1. d4 {[%clk 0:03:00.1]} 1... Nf6 {[%clk 0:02:59]} 2. c4 {[%clk 0:03:00.4]} 2...
c5 {[%clk 0:02:58.1]} 3. d5 {[%clk 0:03:00.6]} 3... b5 {[%clk 0:02:57.2]} 4.
cxb5 {[%clk 0:03:01]} 4... a6 {[%clk 0:02:56.9]} 5. e3 {[%clk 0:03:01.6]} 5...
g6 {[%clk 0:02:48.6]} 6. Nc3 {[%clk 0:03:01.4]} 6... Bg7 {[%clk 0:02:48.9]} 7.
Nf3 {[%clk 0:03:01.9]} 7... O-O {[%clk 0:02:48.5]} 8. a4 {[%clk 0:03:02.3]} 8...
Bb7 {[%clk 0:02:48.2]} 9. e4 {[%clk 0:03:02.7]} 9... e6 {[%clk 0:02:47.8]} 10.
Be2 {[%clk 0:03:00.6]} 10... axb5 {[%clk 0:02:45.9]} 11. Bxb5 {[%clk 0:03:00.8]}
11... exd5 {[%clk 0:02:46]} 12. exd5 {[%clk 0:03:01.3]} 12... Qe8+ {[%clk
0:02:37.5]} 13. Be2 {[%clk 0:02:35]} 13... Ne4 {[%clk 0:02:09.7]} 14. Nb5 {[%clk
0:02:24.6]} 14... Na6 {[%clk 0:01:42.4]} 15. O-O {[%clk 0:02:24.3]} 15... Qb8
{[%clk 0:01:33.2]} 16. Re1 {[%clk 0:02:20.3]} 16... Nb4 {[%clk 0:01:27.7]} 17.
Bc4 {[%clk 0:02:16.3]} 17... Re8 {[%clk 0:01:12.8]} 18. d6 {[%clk 0:01:52.8]}
18... Ra6 {[%clk 0:00:44.2]} 19. Bf4 {[%clk 0:01:20.4]} 19... Bxb2 {[%clk
0:00:42.4]} 20. Rb1 {[%clk 0:01:20.6]} 20... Bf6 {[%clk 0:00:34.5]} 21. Nc7
{[%clk 0:01:19.2]} 21... Ra5 {[%clk 0:00:05.3]} 22. Nxe8 {[%clk 0:01:04.1]}
22... Qxe8 {[%clk 0:00:06.2]} 23. Nd2 {[%clk 0:00:45.6]} 23... Qa8 {[%clk
0:00:06.7]} 24. Nxe4 {[%clk 0:00:25.6]} 24... Bxe4 {[%clk 0:00:07.6]} 25. Rb3
{[%clk 0:00:23.4]} 25... Bxg2 {[%clk 0:00:07.5]} 26. Rbe3 {[%clk 0:00:22.3]}
26... Kg7 {[%clk 0:00:06.5]} 27. Qd2 {[%clk 0:00:20.3]} 27... Bc6 {[%clk
0:00:04]} 28. Re8 {[%clk 0:00:18.1]} 28... Qb7 {[%clk 0:00:04.2]} 29. Bh6#
{[%clk 0:00:18.2]} 1-0

[Event "*** Titled Tuesday Blitz"]
[Site "Chess.com"]
[Date "2020.11.10"]
[Round "10"]
[White "tandaleo"]
[Black "anpospan"]
[Result "0-1"]
[WhiteElo "2311"]
[BlackElo "2436"]
[TimeControl "180+1"]
[EndTime "12:02:01 PST"]
[Termination "anpospan won by resignation"]

1. d4 {[%clk 0:03:00.9]} 1... Nf6 {[%clk 0:02:59.4]} 2. c4 {[%clk 0:02:58.3]}
2... e6 {[%clk 0:02:59.4]} 3. Nc3 {[%clk 0:02:55.1]} 3... c5 {[%clk 0:02:59.2]}
4. d5 {[%clk 0:02:54.9]} 4... exd5 {[%clk 0:02:58.3]} 5. cxd5 {[%clk 0:02:55.3]}
5... d6 {[%clk 0:02:46.7]} 6. e4 {[%clk 0:02:54.4]} 6... g6 {[%clk 0:02:46.7]}
7. Be2 {[%clk 0:02:54.1]} 7... Bg7 {[%clk 0:02:46.7]} 8. Be3 {[%clk 0:02:54]}
8... O-O {[%clk 0:02:46.5]} 9. Nf3 {[%clk 0:02:48.5]} 9... a6 {[%clk 0:02:46.5]}
10. a4 {[%clk 0:02:48.1]} 10... Ng4 {[%clk 0:02:43.6]} 11. Bg5 {[%clk
0:02:44.4]} 11... Bf6 {[%clk 0:02:40.4]} 12. Bxf6 {[%clk 0:02:35.4]} 12... Qxf6
{[%clk 0:02:40.1]} 13. h3 {[%clk 0:02:33.9]} 13... Ne5 {[%clk 0:02:37.6]} 14.
Nxe5 {[%clk 0:02:33]} 14... Qxe5 {[%clk 0:02:36.4]} 15. O-O {[%clk 0:02:33.1]}
15... Re8 {[%clk 0:02:29.8]} 16. f4 {[%clk 0:02:30.4]} 16... Qd4+ {[%clk
0:02:28.4]} 17. Kh2 {[%clk 0:02:27.6]} 17... Nd7 {[%clk 0:02:18.8]} 18. Bf3
{[%clk 0:02:21]} 18... Nf6 {[%clk 0:02:16.9]} 19. Qc2 {[%clk 0:02:20.7]} 19...
Bd7 {[%clk 0:01:59.4]} 20. Rad1 {[%clk 0:02:19.3]} 20... Qe3 {[%clk 0:01:51.1]}
21. g3 {[%clk 0:02:10.8]} 21... c4 {[%clk 0:01:41.8]} 22. Bg2 {[%clk 0:02:09.2]}
22... Nh5 {[%clk 0:01:34.7]} 23. Rf3 {[%clk 0:02:04]} 23... Qc5 {[%clk
0:01:34.4]} 24. Rdf1 {[%clk 0:01:22.6]} 24... b5 {[%clk 0:01:19.4]} 25. axb5
{[%clk 0:01:17.9]} 25... axb5 {[%clk 0:01:19.3]} 26. e5 {[%clk 0:01:18]} 26...
b4 {[%clk 0:01:18]} 27. Ne4 {[%clk 0:01:13.5]} 27... Bf5 {[%clk 0:01:14.2]} 28.
Nxc5 {[%clk 0:00:43.2]} 28... Bxc2 {[%clk 0:01:13.8]} 29. exd6 {[%clk
0:00:43.6]} 29... Ra2 {[%clk 0:01:01.1]} 30. Re1 {[%clk 0:00:33.9]} 30... Rxe1
{[%clk 0:00:43.4]} 31. d7 {[%clk 0:00:33.9]} 31... Ra8 {[%clk 0:00:43.1]} 32.
Nb7 {[%clk 0:00:32.4]} 32... Re2 {[%clk 0:00:36.4]} 33. Kg1 {[%clk 0:00:16.6]}
33... Be4 {[%clk 0:00:30.7]} 34. Rf2 {[%clk 0:00:16.7]} 34... Rxf2 {[%clk
0:00:28.1]} 35. Kxf2 {[%clk 0:00:17.6]} 35... Bxg2 {[%clk 0:00:27.7]} 36. d8=Q+
{[%clk 0:00:14.4]} 36... Rxd8 {[%clk 0:00:26.7]} 37. Nxd8 {[%clk 0:00:15.3]}
37... Bxd5 {[%clk 0:00:25.7]} 0-1

[Event "*** Titled Tuesday Blitz"]
[Site "Chess.com"]
[Date "2020.11.10"]
[Round "10"]
[White "davigator"]
[Black "paulrusan"]
[Result "1-0"]
[WhiteElo "2358"]
[BlackElo "2217"]
[TimeControl "180+1"]
[EndTime "12:02:02 PST"]
[Termination "davigator won by resignation"]

1. e4 {[%clk 0:03:00.9]} 1... g6 {[%clk 0:02:59]} 2. d4 {[%clk 0:02:57.9]} 2...
Bg7 {[%clk 0:02:59.1]} 3. Nc3 {[%clk 0:02:57.6]} 3... d6 {[%clk 0:02:59.4]} 4.
f3 {[%clk 0:02:55.7]} 4... a6 {[%clk 0:02:57.1]} 5. Be3 {[%clk 0:02:55.7]} 5...
b5 {[%clk 0:02:57]} 6. Qd2 {[%clk 0:02:56]} 6... Bb7 {[%clk 0:02:57.1]} 7. O-O-O
{[%clk 0:02:56.2]} 7... Nd7 {[%clk 0:02:56.9]} 8. Kb1 {[%clk 0:02:53.7]} 8... h5
{[%clk 0:02:55.8]} 9. Bd3 {[%clk 0:02:53.4]} 9... Ngf6 {[%clk 0:02:55.8]} 10.
Nce2 {[%clk 0:02:53.2]} 10... c5 {[%clk 0:02:53.5]} 11. c3 {[%clk 0:02:52.6]}
11... c4 {[%clk 0:02:52.2]} 12. Bc2 {[%clk 0:02:52.5]} 12... Qc7 {[%clk
0:02:49.7]} 13. h3 {[%clk 0:02:50.7]} 13... h4 {[%clk 0:02:48.8]} 14. Nc1 {[%clk
0:02:50]} 14... Nh5 {[%clk 0:02:48]} 15. Nge2 {[%clk 0:02:49.7]} 15... O-O-O
{[%clk 0:02:40.6]} 16. Bg5 {[%clk 0:02:49.1]} 16... Bf6 {[%clk 0:02:40]} 17.
Rhe1 {[%clk 0:02:47.1]} 17... e5 {[%clk 0:02:28.7]} 18. Be3 {[%clk 0:02:45.8]}
18... Kb8 {[%clk 0:02:21.9]} 19. Rf1 {[%clk 0:02:35.2]} 19... Rhe8 {[%clk
0:02:14.7]} 20. Bg5 {[%clk 0:02:32.8]} 20... d5 {[%clk 0:02:06.6]} 21. Bxf6
{[%clk 0:02:32.7]} 21... Ndxf6 {[%clk 0:02:03.2]} 22. dxe5 {[%clk 0:02:25.9]}
22... dxe4 {[%clk 0:01:58.5]} 23. Nd4 {[%clk 0:02:16.2]} 23... Qxe5 {[%clk
0:01:54.4]} 24. fxe4 {[%clk 0:02:12.2]} 24... Nxe4 {[%clk 0:01:53.8]} 25. Bxe4
{[%clk 0:02:05.2]} 25... Bxe4+ {[%clk 0:01:49.9]} 26. Ka1 {[%clk 0:02:05.2]}
26... f5 {[%clk 0:01:49.2]} 27. Rde1 {[%clk 0:01:57.8]} 27... Kb7 {[%clk
0:01:48.5]} 28. Qg5 {[%clk 0:01:56.4]} 28... Rxd4 {[%clk 0:01:22.5]} 29. cxd4
{[%clk 0:01:55.4]} 29... Qxd4 {[%clk 0:01:22.9]} 30. Qe3 {[%clk 0:01:52.7]}
30... Rd8 {[%clk 0:01:18.4]} 31. Qxd4 {[%clk 0:01:48.1]} 31... Rxd4 {[%clk
0:01:18.5]} 32. Rf2 {[%clk 0:01:48.6]} 32... Ng3 {[%clk 0:01:15.7]} 33. a3
{[%clk 0:01:44.9]} 33... c3 {[%clk 0:01:12.9]} 34. bxc3 {[%clk 0:01:44.2]} 34...
Rd7 {[%clk 0:01:05]} 35. Nb3 {[%clk 0:01:43.2]} 35... Kb6 {[%clk 0:01:01.4]} 36.
Nd2 {[%clk 0:01:39.8]} 36... Rd3 {[%clk 0:00:59.2]} 37. Kb2 {[%clk 0:01:38.5]}
37... a5 {[%clk 0:00:53.9]} 38. Nf3 {[%clk 0:01:35.9]} 38... Bxf3 {[%clk
0:00:45]} 39. gxf3 {[%clk 0:01:35.6]} 39... g5 {[%clk 0:00:36.8]} 40. Kc2 {[%clk
0:01:30.7]} 40... Rd6 {[%clk 0:00:35.5]} 41. Re5 {[%clk 0:01:30.6]} 41... Kc6
{[%clk 0:00:27.7]} 42. Kc1 {[%clk 0:01:27.6]} 42... Rd5 {[%clk 0:00:24.7]} 43.
Re6+ {[%clk 0:01:26.4]} 43... Kc5 {[%clk 0:00:24.6]} 44. Rb2 {[%clk 0:01:26.7]}
44... Kc4 {[%clk 0:00:19.6]} 45. Rc6+ {[%clk 0:01:26.6]} 45... Kd3 {[%clk
0:00:15]} 46. Rd2+ {[%clk 0:01:26.2]} 46... Ke3 {[%clk 0:00:15.2]} 47. Rxd5
{[%clk 0:01:26.2]} 47... Kxf3 {[%clk 0:00:15]} 48. Rxb5 {[%clk 0:01:24.2]} 48...
Kg2 {[%clk 0:00:14.3]} 49. Rg6 {[%clk 0:01:21.8]} 49... g4 {[%clk 0:00:12.8]}
50. hxg4 {[%clk 0:01:18.3]} 50... h3 {[%clk 0:00:12.9]} 51. gxf5 {[%clk
0:01:16.4]} 51... h2 {[%clk 0:00:12.7]} 52. Rh6 {[%clk 0:01:17]} 52... Ne2+
{[%clk 0:00:08.8]} 53. Kd2 {[%clk 0:01:16.1]} 53... Nf4 {[%clk 0:00:08.9]} 54.
Rxh2+ {[%clk 0:01:16.2]} 54... Kxh2 {[%clk 0:00:08.4]} 55. f6 {[%clk 0:01:16.8]}
1-0

[Event "*** Titled Tuesday Blitz"]
[Site "Chess.com"]
[Date "2020.11.10"]
[Round "10"]
[White "Promacherr"]
[Black "chenxiaoyuer"]
[Result "1-0"]
[WhiteElo "2726"]
[BlackElo "2543"]
[TimeControl "180+1"]
[EndTime "12:02:06 PST"]
[Termination "Promacherr won by resignation"]

1. d4 {[%clk 0:03:00.9]} 1... Nf6 {[%clk 0:02:59.1]} 2. c4 {[%clk 0:03:01.2]}
2... g6 {[%clk 0:02:58.5]} 3. Nc3 {[%clk 0:03:01.3]} 3... Bg7 {[%clk 0:02:58.9]}
4. e4 {[%clk 0:03:01.2]} 4... d6 {[%clk 0:02:58.8]} 5. Be2 {[%clk 0:03:01.5]}
5... O-O {[%clk 0:02:57.9]} 6. Bg5 {[%clk 0:03:02]} 6... h6 {[%clk 0:02:55.8]}
7. Be3 {[%clk 0:03:01.6]} 7... c5 {[%clk 0:02:56]} 8. d5 {[%clk 0:03:01.6]} 8...
e6 {[%clk 0:02:53.5]} 9. h3 {[%clk 0:02:56.5]} 9... exd5 {[%clk 0:02:50.7]} 10.
exd5 {[%clk 0:02:57.4]} 10... Re8 {[%clk 0:02:48.3]} 11. Nf3 {[%clk 0:02:57.9]}
11... Nbd7 {[%clk 0:02:46.5]} 12. O-O {[%clk 0:02:57.9]} 12... Ne4 {[%clk
0:02:32.7]} 13. Nxe4 {[%clk 0:02:57.9]} 13... Rxe4 {[%clk 0:02:33.2]} 14. Qd2
{[%clk 0:02:58.5]} 14... g5 {[%clk 0:02:25.2]} 15. Bd3 {[%clk 0:02:58.2]} 15...
Re8 {[%clk 0:02:23.5]} 16. Rae1 {[%clk 0:02:54.8]} 16... Nf6 {[%clk 0:02:18.3]}
17. Qc2 {[%clk 0:02:45.3]} 17... Bd7 {[%clk 0:02:13.5]} 18. Bf5 {[%clk
0:02:38.8]} 18... Bxf5 {[%clk 0:02:11]} 19. Qxf5 {[%clk 0:02:39.7]} 19... Qd7
{[%clk 0:02:03.2]} 20. Qxd7 {[%clk 0:02:39.6]} 20... Nxd7 {[%clk 0:02:04.1]} 21.
b3 {[%clk 0:02:40.4]} 21... f5 {[%clk 0:01:55.7]} 22. Bc1 {[%clk 0:02:35.2]}
22... Kf7 {[%clk 0:01:45.7]} 23. Rxe8 {[%clk 0:02:25.2]} 23... Rxe8 {[%clk
0:01:44.5]} 24. Re1 {[%clk 0:02:26.1]} 24... Rxe1+ {[%clk 0:01:32.2]} 25. Nxe1
{[%clk 0:02:27]} 25... Bc3 {[%clk 0:01:26.9]} 26. Nc2 {[%clk 0:02:27.1]} 26...
f4 {[%clk 0:01:23.5]} 27. Kf1 {[%clk 0:02:23.4]} 27... Kf6 {[%clk 0:01:23]} 28.
Ke2 {[%clk 0:02:23.4]} 28... Ne5 {[%clk 0:01:17.2]} 29. Na3 {[%clk 0:02:21.4]}
29... a6 {[%clk 0:01:16.1]} 30. Nb1 {[%clk 0:02:21.3]} 30... Bd4 {[%clk
0:01:15.1]} 31. Nd2 {[%clk 0:02:21.8]} 31... Kf5 {[%clk 0:01:13]} 32. Ba3 {[%clk
0:01:49.8]} 32... Bc3 {[%clk 0:01:04.8]} 33. Nf1 {[%clk 0:01:33]} 33... h5
{[%clk 0:01:00.7]} 34. Bc1 {[%clk 0:01:25.4]} 34... Ke4 {[%clk 0:00:52]} 35. Nh2
{[%clk 0:01:18.4]} 35... Nd3 {[%clk 0:00:32.9]} 36. Ba3 {[%clk 0:01:13.2]} 36...
Bb4 {[%clk 0:00:20.5]} 37. Bxb4 {[%clk 0:01:07.4]} 37... Nxb4 {[%clk 0:00:21.4]}
38. a4 {[%clk 0:00:56.4]} 38... Nd3 {[%clk 0:00:16.4]} 39. Nf3 {[%clk
0:00:52.1]} 39... Nc1+ {[%clk 0:00:13.8]} 40. Kd2 {[%clk 0:00:51.8]} 40... Nxb3+
{[%clk 0:00:13.6]} 41. Kc3 {[%clk 0:00:52.3]} 41... Nd4 {[%clk 0:00:11.3]} 42.
Nxg5+ {[%clk 0:00:52.3]} 42... Kf5 {[%clk 0:00:08.5]} 43. Nf7 {[%clk 0:00:52.7]}
43... f3 {[%clk 0:00:06]} 44. gxf3 {[%clk 0:00:50.2]} 44... Kf4 {[%clk
0:00:05.4]} 45. Nxd6 {[%clk 0:00:50.1]} 45... Kxf3 {[%clk 0:00:05.5]} 46. Nxb7
{[%clk 0:00:50.3]} 46... Kxf2 {[%clk 0:00:05.3]} 47. Nxc5 {[%clk 0:00:50.5]}
47... Nf5 {[%clk 0:00:04.7]} 1-0

[Event "*** Titled Tuesday Blitz"]
[Site "Chess.com"]
[Date "2020.11.10"]
[Round "10"]
[White "vovachesss"]
[Black "mapleaff"]
[Result "0-1"]
[WhiteElo "2669"]
[BlackElo "2430"]
[TimeControl "180+1"]
[EndTime "12:02:09 PST"]
[Termination "mapleaff won on time"]

1. c4 {[%clk 0:03:00.9]} 1... e6 {[%clk 0:02:59.4]} 2. Nc3 {[%clk 0:02:58.1]}
2... Nf6 {[%clk 0:02:59.7]} 3. d4 {[%clk 0:02:58.4]} 3... Bb4 {[%clk 0:02:58.6]}
4. Qc2 {[%clk 0:02:51.3]} 4... O-O {[%clk 0:02:54.1]} 5. e3 {[%clk 0:02:49.6]}
5... b6 {[%clk 0:02:50.9]} 6. Bd3 {[%clk 0:02:49.6]} 6... Bb7 {[%clk 0:02:48.7]}
7. Ne2 {[%clk 0:02:48.8]} 7... d5 {[%clk 0:02:45.8]} 8. Rg1 {[%clk 0:02:34.6]}
8... dxc4 {[%clk 0:02:43.6]} 9. Bxc4 {[%clk 0:02:34.8]} 9... c5 {[%clk 0:02:37]}
10. Bd2 {[%clk 0:02:33.3]} 10... cxd4 {[%clk 0:02:34.6]} 11. Nxd4 {[%clk
0:02:33.5]} 11... Nbd7 {[%clk 0:02:29.1]} 12. O-O-O {[%clk 0:02:33.3]} 12... Ne5
{[%clk 0:02:28.5]} 13. Be2 {[%clk 0:02:25]} 13... Rc8 {[%clk 0:02:24.5]} 14. f4
{[%clk 0:01:53]} 14... Nc4 {[%clk 0:02:03.3]} 15. Qb3 {[%clk 0:01:31.9]} 15...
Bxc3 {[%clk 0:01:46.5]} 16. Bxc3 {[%clk 0:01:32.8]} 16... Nxe3 {[%clk
0:01:42.2]} 17. Nxe6 {[%clk 0:01:32]} 17... Qe7 {[%clk 0:01:33.4]} 18. Nxf8
{[%clk 0:01:27.2]} 18... Nxd1 {[%clk 0:01:31.8]} 19. Qxd1 {[%clk 0:01:08.3]}
19... Nd5 {[%clk 0:00:51.2]} 20. Nd7 {[%clk 0:00:29]} 20... Qe3+ {[%clk
0:00:24.6]} 21. Kb1 {[%clk 0:00:22.4]} 21... Nxc3+ {[%clk 0:00:14.9]} 22. bxc3
{[%clk 0:00:13.4]} 22... Be4+ {[%clk 0:00:14.5]} 23. Bd3 {[%clk 0:00:11.6]}
23... Bxd3+ {[%clk 0:00:13.7]} 24. Kb2 {[%clk 0:00:12.2]} 24... Bf5 {[%clk
0:00:06.9]} 25. Nc5 {[%clk 0:00:01.9]} 25... Qxc5 {[%clk 0:00:06.6]} 26. Qd2
{[%clk 0:00:01.5]} 26... Qxg1 {[%clk 0:00:05.9]} 0-1

[Event "*** Titled Tuesday Blitz"]
[Site "Chess.com"]
[Date "2020.11.10"]
[Round "10"]
[White "SergeyShtyka"]
[Black "VladaSviridova"]
[Result "0-1"]
[WhiteElo "2346"]
[BlackElo "2259"]
[TimeControl "180+1"]
[EndTime "12:02:11 PST"]
[Termination "VladaSviridova won on time"]

1. e4 {[%clk 0:03:00.8]} 1... e6 {[%clk 0:02:59.5]} 2. Nf3 {[%clk 0:03:00.7]}
2... d5 {[%clk 0:02:59.8]} 3. e5 {[%clk 0:03:00.9]} 3... c5 {[%clk 0:02:59.6]}
4. b4 {[%clk 0:03:01]} 4... cxb4 {[%clk 0:02:59.8]} 5. a3 {[%clk 0:03:01.5]}
5... Nc6 {[%clk 0:03:00.1]} 6. axb4 {[%clk 0:03:01.1]} 6... Bxb4 {[%clk
0:03:00.8]} 7. c3 {[%clk 0:03:01.2]} 7... Be7 {[%clk 0:03:01]} 8. d4 {[%clk
0:03:01.5]} 8... f6 {[%clk 0:03:01.6]} 9. Bd3 {[%clk 0:03:00.5]} 9... fxe5
{[%clk 0:03:01.2]} 10. Nxe5 {[%clk 0:03:00.7]} 10... Nf6 {[%clk 0:03:01.2]} 11.
O-O {[%clk 0:02:59.7]} 11... O-O {[%clk 0:03:01.5]} 12. f4 {[%clk 0:02:57]}
12... a6 {[%clk 0:02:54.6]} 13. Ba3 {[%clk 0:02:44.3]} 13... Bxa3 {[%clk
0:02:48.6]} 14. Nxa3 {[%clk 0:02:44.1]} 14... Bd7 {[%clk 0:02:37.1]} 15. Nc2
{[%clk 0:02:41]} 15... Qc7 {[%clk 0:02:31.6]} 16. Ne3 {[%clk 0:02:39.3]} 16...
b5 {[%clk 0:02:03]} 17. Rc1 {[%clk 0:02:24]} 17... Na5 {[%clk 0:01:58.5]} 18.
N3g4 {[%clk 0:02:16.9]} 18... Nc4 {[%clk 0:01:52.3]} 19. Qf3 {[%clk 0:01:54.8]}
19... Nd2 {[%clk 0:01:11.6]} 20. Qh3 {[%clk 0:01:54]} 20... Nde4 {[%clk
0:00:37.6]} 21. Nf2 {[%clk 0:01:24.9]} 21... Nxf2 {[%clk 0:00:35.6]} 22. Rxf2
{[%clk 0:01:23.8]} 22... a5 {[%clk 0:00:33.3]} 23. Rb2 {[%clk 0:01:18.6]} 23...
b4 {[%clk 0:00:32.7]} 24. Ng4 {[%clk 0:01:04.4]} 24... g6 {[%clk 0:00:29.4]} 25.
Ne5 {[%clk 0:00:57.3]} 25... Rac8 {[%clk 0:00:22.8]} 26. Rbc2 {[%clk 0:00:56.1]}
26... b3 {[%clk 0:00:22.1]} 27. Rb2 {[%clk 0:00:55.3]} 27... a4 {[%clk
0:00:22.3]} 28. c4 {[%clk 0:00:47]} 28... dxc4 {[%clk 0:00:20.3]} 29. Rxc4
{[%clk 0:00:44.5]} 29... Qd6 {[%clk 0:00:20.5]} 30. Qh6 {[%clk 0:00:24.6]} 30...
Rxc4 {[%clk 0:00:19.4]} 31. Nxc4 {[%clk 0:00:05.5]} 31... Qxd4+ {[%clk
0:00:19.2]} 32. Kh1 {[%clk 0:00:05.7]} 32... Qxd3 {[%clk 0:00:18.8]} 0-1

[Event "*** Titled Tuesday Blitz"]
[Site "Chess.com"]
[Date "2020.11.10"]
[Round "10"]
[White "AniJak"]
[Black "tlomigtlis"]
[Result "0-1"]
[WhiteElo "2379"]
[BlackElo "2579"]
[TimeControl "180+1"]
[EndTime "12:02:13 PST"]
[Termination "tlomigtlis won by checkmate"]

1. e4 {[%clk 0:03:00.9]} 1... c5 {[%clk 0:02:59.6]} 2. Nc3 {[%clk 0:03:01]} 2...
d6 {[%clk 0:03:00]} 3. g3 {[%clk 0:03:01.2]} 3... g6 {[%clk 0:03:00.1]} 4. Bg2
{[%clk 0:03:01.3]} 4... Bg7 {[%clk 0:03:00.6]} 5. d3 {[%clk 0:03:01.1]} 5... Nc6
{[%clk 0:03:01.2]} 6. Nh3 {[%clk 0:03:00.1]} 6... e6 {[%clk 0:03:00.8]} 7. O-O
{[%clk 0:02:59.8]} 7... Nge7 {[%clk 0:03:01.4]} 8. Be3 {[%clk 0:02:58.8]} 8...
O-O {[%clk 0:03:01.3]} 9. Qd2 {[%clk 0:02:59.3]} 9... Nd4 {[%clk 0:03:01.2]} 10.
Nd1 {[%clk 0:02:58.8]} 10... e5 {[%clk 0:02:58.5]} 11. f4 {[%clk 0:02:55.4]}
11... f5 {[%clk 0:02:56.7]} 12. c3 {[%clk 0:02:54.6]} 12... Ne6 {[%clk
0:02:55.4]} 13. Ng5 {[%clk 0:02:39.6]} 13... Nxg5 {[%clk 0:02:45.9]} 14. fxg5
{[%clk 0:02:40.5]} 14... Qc7 {[%clk 0:02:34.9]} 15. h4 {[%clk 0:02:37.3]} 15...
b6 {[%clk 0:02:29.4]} 16. exf5 {[%clk 0:02:36.5]} 16... Bxf5 {[%clk 0:02:19]}
17. Bxa8 {[%clk 0:02:31.3]} 17... Rxa8 {[%clk 0:02:19.9]} 18. Nf2 {[%clk
0:02:16.3]} 18... d5 {[%clk 0:02:16.7]} 19. d4 {[%clk 0:02:16.6]} 19... exd4
{[%clk 0:02:15.4]} 20. Bf4 {[%clk 0:02:12.9]} 20... dxc3 {[%clk 0:02:12.7]} 21.
bxc3 {[%clk 0:01:59.8]} 21... Qb7 {[%clk 0:02:10.2]} 22. Rfe1 {[%clk 0:01:55.8]}
22... Rd8 {[%clk 0:02:04.4]} 23. Be5 {[%clk 0:01:52.3]} 23... Bxe5 {[%clk
0:01:40.7]} 24. Rxe5 {[%clk 0:01:52.3]} 24... Qc7 {[%clk 0:01:32.2]} 25. Rae1
{[%clk 0:01:51.2]} 25... Nc6 {[%clk 0:01:29.7]} 26. Re8+ {[%clk 0:01:04]} 26...
Rxe8 {[%clk 0:01:06.9]} 27. Rxe8+ {[%clk 0:01:04.9]} 27... Kf7 {[%clk
0:01:07.5]} 28. Re3 {[%clk 0:00:56]} 28... d4 {[%clk 0:01:05.1]} 29. cxd4 {[%clk
0:00:53]} 29... Nxd4 {[%clk 0:01:06]} 30. Qc3 {[%clk 0:00:43]} 30... Be6 {[%clk
0:00:52.5]} 31. Ne4 {[%clk 0:00:40.2]} 31... Qe5 {[%clk 0:00:42.1]} 32. Rf3+
{[%clk 0:00:28.2]} 32... Bf5 {[%clk 0:00:29.8]} 33. Qc4+ {[%clk 0:00:10.3]}
33... Kg7 {[%clk 0:00:28.7]} 34. Nf6 {[%clk 0:00:05.7]} 34... Nxf3+ {[%clk
0:00:27.7]} 35. Kg2 {[%clk 0:00:05.4]} 35... Ne1+ {[%clk 0:00:26.6]} 36. Kg1
{[%clk 0:00:04.1]} 36... Qe3+ {[%clk 0:00:26.1]} 37. Kh2 {[%clk 0:00:03.1]}
37... Qf2+ {[%clk 0:00:26.1]} 38. Kh1 {[%clk 0:00:01.6]} 38... Qg2# {[%clk
0:00:27]} 0-1